bitfinex-derivatives/quotes_BTCF0:USTF0_20250411
["timestamp","ask_amount","ask_price","bid_price","bid_amount"]
[1744388958255,0.1823852,82294.0,82293.0,0.0506]
[1744388958662,0.5431852,82294.0,82293.0,0.0506]
[1744388958856,0.1215978,82286.0,82285.0,0.00018228]
[1744388959364,0.2802978,82286.0,82285.0,0.00018228]
[1744388960159,0.2802978,82286.0,82285.0,0.00022228]
[1744388960365,0.1216096,82278.0,82277.0,5.4e-05]
[1744388960565,0.1216214,82270.0,82269.0,0.21846751]
[1744388961073,0.2815214,82270.0,82269.0,0.34009041]
[1744388961256,0.2815214,82270.0,82269.0,0.34013041]
[1744388961457,0.1216214,82270.0,82269.0,0.39383041]
[1744388961863,0.1216214,82270.0,82269.0,0.1753629]
[1744388962063,0.2298214,82270.0,82269.0,0.1753629]
[1744388962662,0.2298214,82270.0,82269.0,0.2260629]
[1744388963064,0.1216214,82270.0,82269.0,0.10444]
[1744388963362,0.1765214,82270.0,82269.0,0.10444]
[1744388963561,0.2298214,82270.0,82269.0,0.10444]
[1744388964354,0.1765214,82270.0,82269.0,0.10444]
[1744388964759,0.2269214,82270.0,82269.0,0.10444]
[1744388964962,0.2269214,82270.0,82269.0,0.1044]
[1744388965170,0.2269214,82270.0,82269.0,0.10444]
[1744388965362,0.1216214,82270.0,82269.0,0.10444]
[1744388965569,0.1715214,82270.0,82269.0,0.10444]
[1744388966066,0.2219214,82270.0,82269.0,0.10444]
[1744388966265,0.2219214,82270.0,82269.0,0.2260629]
[1744388966967,0.2219214,82270.0,82269.0,0.10444]
[1744388967168,0.2219214,82270.0,82269.0,0.2260629]
[1744388967663,0.2219214,82270.0,82269.0,0.10444]
[1744388968062,0.2219214,82270.0,82269.0,0.2260629]
[1744388970363,0.2219214,82270.0,82269.0,4e-05]
[1744388970669,0.1216303,82264.0,82263.0,0.3608]
[1744388972070,0.1216303,82264.0,82263.0,0.1747318]
[1744388972867,0.0608144,82265.0,82263.0,0.1747318]
[1744388972868,0.0608134,82267.0,82263.0,0.0531]
[1744388973074,0.0608134,82267.0,82266.0,0.1216274]
[1744388973265,0.1824337,82270.0,82269.0,0.1216229]
[1744388973463,0.1824337,82270.0,82269.0,0.4824229]
[1744388973661,0.1824337,82270.0,82269.0,0.5338229]
[1744388981569,0.0608108,82270.0,82269.0,0.5338629]
[1744388982571,0.0608064,82276.0,82272.0,0.0608091]
[1744388982875,0.1824219,82276.0,82275.0,0.1216111]
[1744388983268,0.1824219,82276.0,82275.0,0.2291111]
[1744388983772,0.00018152,82278.0,82275.0,0.1075]
[1744388984072,0.12179112,82278.0,82277.0,0.4824111]
[1744388984276,0.12179112,82278.0,82277.0,0.5899111]
[1744388984478,0.12179112,82278.0,82277.0,0.5899511]
[1744388986879,0.12179112,82278.0,82277.0,0.054]
[1744388987068,0.22399112,82278.0,82277.0,0.05404]
[1744388987479,0.22399112,82278.0,82277.0,0.054]
[1744388987681,0.22399112,82278.0,82277.0,0.05404]
[1744388989969,0.22399112,82278.0,82277.0,0.054]
[1744388990187,0.22399112,82278.0,82277.0,0.05404]
[1744388990387,0.22399112,82278.0,82277.0,0.054]
[1744388990571,0.22399112,82278.0,82277.0,0.05404]
[1744388993377,0.22399112,82278.0,82277.0,0.1756511]
[1744388994177,0.22399112,82278.0,82277.0,0.2252511]
[1744388995982,0.12179112,82278.0,82277.0,0.2252511]
[1744389000786,0.00018152,82278.0,82277.0,0.2252511]
[1744389001089,0.2215771,82300.0,82299.0,0.1215786]
[1744389001292,0.2215771,82300.0,82292.0,0.3608]
[1744389001293,0.1215875,82293.0,82292.0,0.3608]
[1744389001791,0.1824026,82284.0,82283.0,0.1216015]
[1744389001989,0.1824026,82284.0,82282.0,0.4153]
[1744389001990,0.1216022,82283.0,82282.0,0.4153]
[1744389002180,0.2766022,82283.0,82282.0,0.1216037]
[1744389002583,0.1216022,82283.0,82282.0,0.1216437]
[1744389002783,0.0607958,82291.0,82286.0,0.0607988]
[1744389003088,0.005,82302.0,82299.0,0.1215786]
[1744389003286,0.005,82302.0,82299.0,0.4823786]
[1744389003488,0.005,82302.0,82299.0,0.7841786]
[1744389003785,0.005,82302.0,82299.0,0.5341786]
[1744389005485,0.005,82302.0,82299.0,0.54620608]
[1744389006380,0.005,82302.0,82299.0,0.79620608]
[1744389007580,0.005,82302.0,82299.0,0.54620608]
[1744389008086,0.67317109,82315.0,82304.0,0.0607851]
[1744389008087,0.61239359,82315.0,82304.0,0.0607851]
[1744389008383,0.005,82328.0,82327.0,0.1215372]
[1744389008584,0.005,82328.0,82327.0,0.5684972]
[1744389010979,0.0518,82342.0,82341.0,0.1215166]
[1744389011295,0.1762068,82348.0,82347.0,0.1215077]
[1744389011491,0.1215068,82348.0,82347.0,0.1215077]
[1744389011698,0.005,82354.0,82349.0,0.0607521]
[1744389011889,0.005,82354.0,82353.0,0.4822989]
[1744389013888,0.1264974,82354.0,82353.0,0.4822989]
[1744389014087,0.1264974,82354.0,82353.0,0.3608]
[1744389014088,0.2321974,82354.0,82353.0,0.3608]
[1744389014688,0.1796974,82354.0,82353.0,0.4822989]
[1744389015088,0.1796974,82354.0,82353.0,0.4823389]
[1744389015794,0.1797374,82354.0,82353.0,0.4823389]
[1744389016497,0.1797374,82354.0,82353.0,4e-05]
[1744389016885,0.1215136,82343.0,82342.0,0.5351151]
[1744389017085,0.1215136,82343.0,82342.0,0.5351691]
[1744389018795,0.1214994,82353.0,82342.0,0.413654]
[1744389018996,0.005,82354.0,82353.0,0.1214989]
[1744389019202,0.005,82354.0,82353.0,0.2221989]
[1744389019599,0.1265374,82354.0,82353.0,0.2221989]
[1744389020497,0.00504,82354.0,82353.0,0.2221989]
[1744389020791,0.00504,82354.0,82353.0,0.3083189]
[1744389020995,0.005,82354.0,82353.0,0.3083189]
[1744389021199,0.00504,82354.0,82353.0,0.3083189]
[1744389022186,0.00504,82354.0,82353.0,0.5583189]
[1744389022392,9.842e-05,82365.0,82364.0,0.1214826]
[1744389022594,0.0497,82379.0,82367.0,0.1214782]
[1744389022798,0.1214621,82378.0,82373.0,0.1214694]
[1744389023005,0.1214621,82378.0,82377.0,0.1214635]
[1744389023196,0.1214621,82378.0,82377.0,0.4822635]
[1744389023599,0.005,82380.0,82379.0,0.1214605]
[1744389023798,0.005,82380.0,82379.0,0.5757605]
[1744389024099,0.00017133,82391.0,82390.0,0.1214443]
[1744389024299,0.00017133,82391.0,82390.0,0.4822443]
[1744389024497,0.1214365,82396.0,82395.0,0.1214355]
[1744389024795,0.0491,82399.0,82398.0,0.1214325]
[1744389024796,0.0988,82399.0,82398.0,0.1214325]
[1744389024998,0.10005401,82400.0,82399.0,0.121431]
[1744389025199,0.10005401,82400.0,82399.0,0.215631]
[1744389025498,0.1,82400.0,82399.0,0.215631]
[1744389025700,0.10004,82400.0,82399.0,0.215631]
[1744389026394,0.2214696,82400.0,82399.0,0.215631]
[1744389026596,0.2214696,82400.0,82399.0,0.168131]
[1744389027198,0.14694,82400.0,82399.0,0.168131]
[1744389027401,0.1,82400.0,82399.0,0.168131]
[1744389027699,0.10004,82400.0,82399.0,0.215631]
[1744389027998,0.005,82406.0,82405.0,0.1214222]
[1744389028204,0.1264207,82406.0,82405.0,0.4822222]
[1744389028509,0.0466,82407.0,82405.0,0.4822222]
[1744389028800,5.401e-05,82409.0,82408.0,0.1214178]
[1744389028997,0.1107003,82420.0,82411.0,0.060706]
[1744389029201,0.12145871,82418.0,82417.0,0.1214045]
[1744389029497,0.1214047,82418.0,82417.0,0.1683045]
[1744389029717,0.1214047,82418.0,82415.0,0.3608]
[1744389029718,0.121406,82416.0,82415.0,0.3608]
[1744389029898,0.121406,82416.0,82415.0,0.4822075]
[1744389030094,0.0466,82417.0,82416.0,0.121406]
[1744389030289,0.0003042,82423.0,82415.0,0.3608]
[1744389030500,0.4186,82441.0,82429.0,0.1820767]
[1744389030501,0.0606942,82430.0,82429.0,0.1820767]
[1744389030797,0.0606942,82430.0,82429.0,0.6384767]
[1744389030998,0.0606942,82430.0,82429.0,0.4683928]
[1744389031398,0.1213972,82422.0,82420.0,0.3608]
[1744389033095,0.1213972,82422.0,82421.0,0.12158066]
[1744389033491,0.1213972,82422.0,82421.0,0.17028066]
[1744389033697,0.1214372,82422.0,82421.0,0.17028066]
[1744389035499,4e-05,82422.0,82421.0,0.22028066]
[1744389036007,0.1680886,82428.0,82427.0,0.1213898]
[1744389036192,0.0495,82429.0,82427.0,0.1213898]
[1744389036193,0.0495,82429.0,82427.0,0.3608]
[1744389036398,0.0467,82431.0,82430.0,0.1213854]
[1744389036599,0.005,82432.0,82431.0,0.1213839]
[1744389036902,0.005,82432.0,82431.0,0.1717839]
[1744389037305,0.00504,82432.0,82431.0,0.1717839]
[1744389037502,0.005,82432.0,82431.0,0.1717839]
[1744389037705,0.00504,82432.0,82431.0,0.1717839]
[1744389038496,5.401e-05,82443.0,82431.0,0.2192839]
[1744389038806,5.401e-05,82443.0,82442.0,0.4821677]
[1744389039105,0.1213545,82451.0,82450.0,0.2427074]
[1744389039308,0.12140471,82454.0,82453.0,0.1213515]
[1744389039603,0.1263458,82458.0,82457.0,0.1213456]
[1744389039799,0.1263458,82458.0,82457.0,0.4821456]
[1744389040207,0.1747858,82458.0,82457.0,0.4821456]
[1744389040400,0.1747858,82458.0,82457.0,0.5818456]
[1744389040601,0.0003042,82464.0,82459.0,0.0606706]
[1744389040803,0.0003042,82464.0,82463.0,0.1213368]
[1744389041003,0.1213353,82464.0,82463.0,0.1213368]
[1744389041206,4e-05,82464.0,82463.0,0.1213368]
[1744389041507,0.1213344,82465.0,82464.0,0.1213353]
[1744389041914,0.0606656,82467.0,82466.0,0.1213324]
[1744389042395,0.12137901,82471.0,82470.0,0.1213265]
[1744389042600,0.12137901,82471.0,82470.0,0.4821265]
[1744389043004,5.401e-05,82471.0,82470.0,0.4821265]
[1744389043199,0.17137901,82471.0,82470.0,0.4821265]
[1744389043404,0.22077901,82471.0,82470.0,0.5330265]
[1744389044109,5.401e-05,82471.0,82470.0,0.5330265]
[1744389044509,0.0494,82475.0,82474.0,0.1213206]
[1744389046402,0.1707191,82475.0,82474.0,0.1213206]
[1744389049508,0.1213236,82472.0,82471.0,0.3608]
[1744389049712,0.1213368,82463.0,82458.0,0.3608]
[1744389050210,0.1213368,82463.0,82462.0,0.12152024]
[1744389050604,0.2667368,82463.0,82462.0,0.12152024]
[1744389050804,0.0606676,82464.0,82463.0,0.33763833]
[1744389051004,0.1213335,82466.0,82465.0,0.0606662]
[1744389051312,5.401e-05,82470.0,82469.0,0.121328]
[1744389051514,0.0606585,82477.0,82476.0,0.1213177]
[1744389051815,0.1213143,82479.0,82478.0,0.1213118]
[1744389052107,0.060654,82483.0,82478.0,0.0606566]
[1744389052406,0.1515333,82484.0,82483.0,0.1213074]
[1744389052611,0.005,82484.0,82483.0,0.1213074]
[1744389053008,7.291e-05,82493.0,82479.0,0.3608]
[1744389053009,0.1212852,82499.0,82498.0,0.1819264]
[1744389053208,0.1212852,82499.0,82498.0,0.5427264]
[1744389053411,0.2212828,82500.0,82499.0,0.1212838]
[1744389053614,0.2212824,82500.0,82499.0,0.1212838]
[1744389053811,0.1,82500.0,82499.0,0.1212838]
[1744389054212,0.10004,82500.0,82499.0,0.1212838]
[1744389054406,0.1,82500.0,82499.0,0.1212838]
[1744389054712,0.10004,82500.0,82499.0,0.1212838]
[1744389054918,0.1,82500.0,82499.0,0.1212838]
[1744389055126,0.10004,82500.0,82499.0,0.1212838]
[1744389055712,0.10004,82500.0,82499.0,0.13042984]
[1744389055913,0.1,82500.0,82499.0,0.13042984]
[1744389056115,0.10004,82500.0,82499.0,0.13042984]
[1744389056315,0.10004,82500.0,82498.0,0.3608]
[1744389056516,0.1212838,82499.0,82498.0,0.3608]
[1744389056819,0.1729838,82499.0,82498.0,0.3608]
[1744389057016,0.2061838,82499.0,82498.0,0.3608]
[1744389057716,0.1212838,82499.0,82498.0,0.3608]
[1744389058919,0.1212838,82499.0,82498.0,0.4820853]
[1744389059120,0.1212838,82499.0,82498.0,0.3608]
[1744389059418,0.1212824,82501.0,82498.0,0.3608]
[1744389059609,0.1212838,82499.0,82498.0,0.3608]
[1744389060206,0.1212838,82499.0,82498.0,0.4820853]
[1744389060614,0.1212838,82499.0,82498.0,0.3608]
[1744389061320,0.1212838,82499.0,82498.0,0.4820853]
[1744389061618,0.065634,82510.0,82504.0,0.0606378]
[1744389061819,0.005,82510.0,82509.0,0.4820691]
[1744389062211,0.1262677,82510.0,82509.0,0.4820691]
[1744389062610,0.005,82510.0,82509.0,0.4820691]
[1744389063116,0.1263077,82510.0,82509.0,0.3608]
[1744389063315,0.1263077,82510.0,82509.0,0.4820691]
[1744389064022,0.1263077,82510.0,82509.0,0.3608]
[1744389064223,0.1263077,82510.0,82509.0,0.4820691]
[1744389064422,0.1263077,82510.0,82509.0,0.5325691]
[1744389064625,0.1262677,82510.0,82509.0,0.5325691]
[1744389065220,0.00504,82510.0,82509.0,0.5325691]
[1744389065420,0.005,82510.0,82509.0,0.5325691]
[1744389065621,0.00504,82510.0,82509.0,0.5325691]
[1744389065918,0.1263077,82510.0,82509.0,0.5325691]
[1744389066518,0.1263077,82510.0,82509.0,0.5801691]
[1744389069027,0.1263077,82510.0,82509.0,0.4589]
[1744389069226,0.1263077,82510.0,82509.0,0.5801691]
[1744389069427,0.1263077,82510.0,82509.0,0.4589]
[1744389070027,0.1263077,82510.0,82509.0,0.5801691]
[1744389070330,0.1263077,82510.0,82509.0,0.4589]
[1744389070528,0.1263077,82510.0,82509.0,0.5801691]
[1744389071926,0.0606319,82513.0,82509.0,0.640803]
[1744389072122,0.1212677,82510.0,82509.0,0.640803]
[1744389073819,0.1212677,82510.0,82509.0,0.5195339]
[1744389076931,5.401e-05,82517.0,82516.0,0.1212589]
[1744389077130,0.12131141,82517.0,82516.0,0.4820589]
[1744389077434,0.1212574,82517.0,82516.0,0.5770589]
[1744389077735,0.1212974,82517.0,82516.0,0.095]
[1744389077931,0.1800974,82517.0,82516.0,0.095]
[1744389078635,0.1212974,82517.0,82516.0,0.5770589]
[1744389079141,4e-05,82517.0,82516.0,0.6376882]
[1744389079434,0.1212574,82517.0,82516.0,0.6376882]
[1744389079635,0.1212974,82517.0,82516.0,0.6376882]
[1744389080537,4e-05,82517.0,82516.0,0.6376882]
[1744389081035,0.0606243,82523.0,82522.0,0.12125]
[1744389081537,0.0606243,82523.0,82522.0,0.22325]
[1744389085741,0.1818693,82526.0,82525.0,0.1212456]
[1744389086243,5.401e-05,82533.0,82525.0,0.0991]
[1744389086535,0.18099788,82541.0,82525.0,0.0991]
[1744389086536,0.1212077,82555.0,82554.0,0.0606005]
[1744389086731,0.1818092,82555.0,82554.0,0.3608]
[1744389086937,0.1212016,82556.0,82555.0,0.1212016]
[1744389087136,0.37317597,82558.0,82557.0,0.1211986]
[1744389087442,0.37317537,82558.0,82557.0,0.1211986]
[1744389087739,0.37321537,82558.0,82557.0,0.1211986]
[1744389087938,0.1212372,82558.0,82557.0,0.1211986]
[1744389088139,4e-05,82558.0,82557.0,0.1211986]
[1744389088441,0.28759918,82561.0,82560.0,0.1211942]
[1744389088631,0.28759918,82561.0,82560.0,0.4819942]
[1744389088827,0.28759918,82561.0,82560.0,0.49110595]
[1744389089041,0.40879198,82561.0,82560.0,0.49110595]
[1744389089236,0.28759918,82561.0,82560.0,0.49110595]
[1744389089943,0.40879198,82561.0,82560.0,0.4819942]
[1744389090142,0.45929198,82561.0,82560.0,0.4632]
[1744389090539,0.45929198,82561.0,82560.0,0.3608]
[1744389091442,0.45929198,82561.0,82560.0,0.4819942]
[1744389092340,0.40879198,82561.0,82560.0,0.5327942]
[1744389092944,0.1212328,82561.0,82560.0,0.5327942]
[1744389093146,0.1211928,82561.0,82560.0,0.5327942]
[1744389093339,0.1212328,82561.0,82560.0,0.5327942]
[1744389093640,4e-05,82561.0,82560.0,0.5327942]
[1744389094031,0.005,82562.0,82561.0,0.1211928]
[1744389094237,0.005,82562.0,82561.0,0.2195928]
[1744389095142,0.1261913,82562.0,82561.0,0.2195928]
[1744389095342,0.1261913,82562.0,82561.0,0.0984]
[1744389095547,0.1261913,82562.0,82561.0,0.2195928]
[1744389095743,0.1773913,82562.0,82561.0,0.2195928]
[1744389096143,0.1261913,82562.0,82561.0,0.2195928]
[1744389096847,0.1261913,82562.0,82561.0,0.0984]
[1744389097047,0.1773913,82562.0,82561.0,0.0984]
[1744389097246,0.2276913,82562.0,82561.0,0.0984]
[1744389097641,0.1773913,82562.0,82561.0,0.0984]
[1744389099349,0.2280913,82562.0,82561.0,0.2195928]
[1744389099845,0.2280913,82562.0,82561.0,0.0984]
[1744389100051,0.2280913,82562.0,82560.0,0.3608]
[1744389100052,0.1211928,82561.0,82560.0,0.3608]
[1744389100346,0.1697928,82561.0,82560.0,0.3608]
[1744389100538,0.2709928,82561.0,82560.0,0.3608]
[1744389100941,0.1212016,82555.0,82554.0,0.3608]
[1744389101138,0.1212133,82547.0,82546.0,0.00018169]
[1744389101644,0.2736133,82547.0,82546.0,0.00018169]
[1744389101850,0.1212221,82541.0,82540.0,0.00930401]
[1744389102047,0.1212221,82541.0,82540.0,0.3608]
[1744389102247,0.1212324,82534.0,82533.0,0.57710153]
[1744389102445,0.1212324,82534.0,82533.0,0.4820339]
[1744389102649,0.2228324,82534.0,82533.0,0.3608]
[1744389103759,0.2228324,82534.0,82533.0,0.4820339]
[1744389104158,0.2228324,82534.0,82533.0,0.3608]
[1744389104452,0.2228324,82534.0,82533.0,0.4820339]
[1744389105046,0.2228324,82534.0,82533.0,0.5835339]
[1744389107352,0.2728324,82534.0,82533.0,0.5835339]
[1744389108055,0.2728324,82534.0,82533.0,0.5337339]
[1744389109659,0.2728324,82534.0,82533.0,0.5819339]
[1744389109951,0.2728324,82534.0,82533.0,0.4607]
[1744389110156,0.2728324,82534.0,82533.0,0.5819339]
[1744389113053,0.2728324,82534.0,82533.0,0.4125]
[1744389113254,0.1212442,82526.0,82521.0,0.00484722]
[1744389113445,0.1212442,82526.0,82525.0,0.12142729]
[1744389113842,0.1713442,82526.0,82525.0,0.22142729]
[1744389115659,0.1713442,82526.0,82525.0,0.10018169]
[1744389116046,0.2215442,82526.0,82525.0,0.22142729]
[1744389119451,0.2215442,82526.0,82525.0,0.10018169]
[1744389120255,0.2215442,82526.0,82525.0,0.22142729]
[1744389120555,0.1713442,82526.0,82525.0,0.58222729]
[1744389121355,0.1713442,82526.0,82525.0,0.46098169]
[1744389122147,0.1713442,82526.0,82525.0,0.04958169]
[1744389122345,0.12125,82522.0,82521.0,0.00484722]
[1744389122760,0.27105,82522.0,82521.0,0.00484722]
[1744389123057,0.12125,82522.0,82521.0,0.00484722]
[1744389123257,0.0606184,82531.0,82530.0,0.1212383]
[1744389123857,0.1212343,82533.0,82532.0,0.1818515]
[1744389124063,5.401e-05,82535.0,82534.0,0.1212324]
[1744389124358,0.00017973,82542.0,82541.0,0.1212221]
[1744389124556,0.00017973,82542.0,82541.0,0.49843005]
[1744389124755,0.12140043,82542.0,82541.0,0.59373005]
[1744389124952,0.00017973,82542.0,82541.0,0.59373005]
[1744389125759,0.00017973,82542.0,82541.0,0.60664565]
[1744389127556,0.12140043,82542.0,82541.0,0.60664565]
[1744389129453,0.12140043,82542.0,82541.0,0.60666613]
[1744389130560,0.12140043,82542.0,82541.0,0.59373005]
[1744389131751,0.12140043,82542.0,82541.0,0.47250795]
[1744389131962,0.12140043,82542.0,82541.0,0.4561]
[1744389132366,0.12140043,82542.0,82541.0,0.5773221]
[1744389133152,0.12144043,82542.0,82541.0,0.5773221]
[1744389133756,0.00021973,82542.0,82541.0,0.5773221]
[1744389134859,0.12144043,82542.0,82541.0,0.5773221]
[1744389139361,0.12144043,82542.0,82541.0,0.4561]
[1744389139561,0.1212368,82531.0,82530.0,0.3608]
[1744389139760,0.1212412,82528.0,82527.0,0.0958]
[1744389140267,0.1711412,82528.0,82527.0,0.0958]
[1744389141071,0.2175412,82528.0,82527.0,0.0958]
[1744389141669,0.2175412,82528.0,82527.0,0.0479]
[1744389141871,0.1212456,82525.0,82524.0,0.17340993]
[1744389142264,0.2179456,82525.0,82524.0,0.17340993]
[1744389144972,0.2179456,82525.0,82522.0,0.00018169]
[1744389144973,0.1212486,82523.0,82522.0,0.05088169]
[1744389145372,0.1212574,82517.0,82516.0,0.3608]
[1744389145567,0.1212574,82517.0,82494.0,0.0606453]
[1744389145568,0.1212706,82508.0,82495.0,0.36564875]
[1744389145770,0.1212809,82501.0,82500.0,0.1019]
[1744389145965,0.1212809,82501.0,82500.0,0.2231824]
[1744389146163,0.1212809,82501.0,82500.0,0.23981986]
[1744389146568,0.1212809,82501.0,82500.0,0.2231824]
[1744389148173,0.0606324,82512.0,82508.0,0.1212706]
[1744389148373,0.12145091,82509.0,82508.0,0.3608]
[1744389148772,0.27365091,82509.0,82508.0,0.3608]
[1744389149170,0.27365091,82509.0,82508.0,0.4820706]
[1744389149379,0.00018181,82509.0,82508.0,0.4820706]
[1744389149677,0.00022181,82509.0,82508.0,0.5816706]
[1744389149878,0.00018181,82509.0,82508.0,0.5816706]
[1744389150673,0.00022181,82509.0,82508.0,0.5816706]
[1744389151970,0.00018181,82509.0,82508.0,0.5816706]
[1744389152172,0.00022181,82509.0,82508.0,0.9424706]
[1744389152366,0.00018181,82509.0,82508.0,0.9424706]
[1744389152577,0.00022181,82509.0,82508.0,0.9424706]
[1744389155086,5.401e-05,82519.0,82518.0,0.1212559]
[1744389155282,5.401e-05,82519.0,82518.0,0.5348559]
[1744389155488,0.0606163,82534.0,82533.0,0.1212339]
[1744389155684,0.0606163,82534.0,82533.0,0.4820339]
[1744389155880,0.1818526,82534.0,82533.0,0.3608]
[1744389156078,0.2326926,82534.0,82533.0,0.4820339]
[1744389157179,0.1818926,82534.0,82533.0,0.4820339]
[1744389157382,0.1818926,82534.0,82533.0,0.5844339]
[1744389158385,0.1262295,82536.0,82535.0,0.1212309]
[1744389158586,0.1262295,82536.0,82535.0,0.2236309]
[1744389159088,0.005,82536.0,82535.0,0.2236309]
[1744389159281,0.1262295,82536.0,82535.0,0.2236309]
[1744389159793,0.1262295,82536.0,82535.0,0.1024]
[1744389159983,0.1262295,82536.0,82535.0,0.0511]
[1744389160194,0.2277295,82536.0,82535.0,0.0511]
[1744389160393,0.1262295,82536.0,82535.0,0.1723309]
[1744389160594,0.1262295,82536.0,82535.0,0.2248309]
[1744389161195,0.1262695,82536.0,82535.0,0.2248309]
[1744389161395,0.00504,82536.0,82535.0,0.2248309]
[1744389161594,0.005,82536.0,82535.0,0.2248309]
[1744389161800,0.00504,82536.0,82535.0,0.2248309]
[1744389162197,0.1262695,82536.0,82535.0,0.2248309]
[1744389163204,0.00504,82536.0,82535.0,0.2248309]
[1744389163802,0.00018181,82542.0,82541.0,0.1212221]
[1744389164001,0.00018181,82542.0,82541.0,0.5859221]
[1744389164211,0.12144251,82542.0,82541.0,0.5859221]
[1744389166101,0.12144251,82542.0,82541.0,0.59482338]
[1744389166507,0.12144251,82542.0,82541.0,0.5859221]
[1744389166906,0.00022181,82542.0,82541.0,0.5859221]
[1744389167299,5.401e-05,82553.0,82552.0,0.121206]
[1744389167499,0.06072507,82567.0,82552.0,0.121206]
[1744389167500,0.0655958,82562.0,82561.0,0.1211928]
[1744389167804,0.0655958,82562.0,82561.0,0.5820928]
[1744389168010,0.005,82562.0,82561.0,0.5820928]
[1744389168700,0.00504,82562.0,82561.0,0.5820928]
[1744389168902,0.005,82562.0,82561.0,0.5820928]
[1744389169104,0.00504,82562.0,82561.0,0.5820928]
[1744389170008,0.005,82562.0,82561.0,0.5820928]
[1744389170214,0.00504,82562.0,82561.0,0.5820928]
[1744389170511,0.005,82562.0,82561.0,0.5820928]
[1744389170701,0.00504,82562.0,82561.0,0.5820928]
[1744389171807,0.00504,82562.0,82561.0,0.59822484]
[1744389172312,0.00017952,82570.0,82569.0,0.121181]
[1744389172514,0.00017952,82570.0,82569.0,0.481981]
[1744389172712,0.00017952,82570.0,82569.0,0.583181]
[1744389173211,0.00013287,82583.0,82580.0,0.1211649]
[1744389173402,0.2134692,82598.0,82587.0,0.1211546]
[1744389173604,0.1211478,82592.0,82587.0,0.4819546]
[1744389173806,0.1261531,82588.0,82587.0,0.4819546]
[1744389174115,0.005,82588.0,82587.0,0.5320546]
[1744389174311,0.005,82588.0,82587.0,0.5792546]
[1744389174707,0.1770531,82588.0,82587.0,0.5792546]
[1744389175721,0.0559,82588.0,82587.0,0.5792546]
[1744389176015,0.00504,82588.0,82587.0,0.5792546]
[1744389176718,5.401e-05,82595.0,82594.0,0.1211443]
[1744389177015,0.0605692,82598.0,82597.0,0.1817062]
[1744389177502,0.0605692,82598.0,82597.0,0.2821062]
[1744389177707,0.0606092,82598.0,82597.0,0.2821062]
[1744389177910,0.1211414,82597.0,82595.0,0.0854]
[1744389178112,0.2825121,82597.0,82596.0,0.1211411]
[1744389179311,0.2825121,82597.0,82596.0,0.1719411]
[1744389179713,0.2825121,82597.0,82596.0,0.1211411]
[1744389180301,0.1817268,82590.0,82587.0,0.3608]
[1744389180508,0.1478,82589.0,82587.0,0.3608]
[1744389180706,0.1478,82589.0,82587.0,0.4099]
[1744389180908,0.1478,82589.0,82588.0,0.0999]
[1744389181610,0.0975,82589.0,82588.0,0.0999]
[1744389182110,0.2186517,82589.0,82588.0,0.2816296]
[1744389182815,0.1211531,82588.0,82587.0,0.3608]
[1744389183015,0.1211531,82588.0,82587.0,0.4099]
[1744389183319,0.1699531,82588.0,82587.0,0.5310546]
[1744389183512,0.2186531,82588.0,82587.0,0.5310546]
[1744389184614,0.1699531,82588.0,82587.0,0.5310546]
[1744389184919,0.1698517,82589.0,82588.0,0.1211531]
[1744389185118,0.1698517,82589.0,82588.0,0.1711531]
[1744389185119,0.0487,82589.0,82588.0,0.1711531]
[1744389185515,0.0494,82596.0,82595.0,0.1211429]
[1744389185709,0.0494,82596.0,82595.0,0.4819429]
[1744389185710,0.17059541,82596.0,82595.0,0.4819429]
[1744389185910,0.0494,82596.0,82595.0,0.5319429]
[1744389186114,0.1705814,82596.0,82595.0,0.5319429]
[1744389186814,0.1211814,82596.0,82595.0,0.5319429]
[1744389187016,4e-05,82596.0,82595.0,0.5319429]
[1744389188117,0.1211814,82596.0,82595.0,0.5319429]
[1744389188624,0.1694814,82596.0,82595.0,0.5319429]
[1744389190809,0.1694814,82596.0,82595.0,0.4819429]
[1744389191010,0.2204814,82596.0,82595.0,0.4819429]
[1744389191216,0.2204814,82596.0,82595.0,0.3608]
[1744389191523,0.2204814,82596.0,82595.0,0.4819429]
[1744389193424,0.2204814,82596.0,82595.0,0.3608]
[1744389196523,0.1211487,82591.0,82590.0,0.060575]
[1744389196720,0.1211517,82589.0,82588.0,0.4104]
[1744389196923,0.1211517,82589.0,82588.0,0.5315531]
[1744389197124,0.2166517,82589.0,82588.0,0.5315531]
[1744389197721,0.2166517,82589.0,82588.0,0.4104]
[1744389197928,0.2166517,82589.0,82588.0,0.5315531]
[1744389199427,0.0605724,82594.0,82593.0,0.1817164]
[1744389200223,0.0606124,82594.0,82593.0,0.1817164]
[1744389200626,0.1105124,82594.0,82593.0,0.1817164]
[1744389201128,0.0606124,82594.0,82593.0,0.1817164]
[1744389201726,4e-05,82594.0,82593.0,0.1817164]
[1744389201929,0.1211375,82599.0,82598.0,0.1817062]
[1744389202132,0.1211375,82599.0,82598.0,0.5425062]
[1744389202630,0.1,82600.0,82599.0,0.121137]
[1744389202838,0.1,82600.0,82599.0,0.169837]
[1744389203130,0.2211755,82600.0,82599.0,0.220737]
[1744389203325,0.10004,82600.0,82599.0,0.220737]
[1744389203530,0.1816849,82612.0,82611.0,0.1816776]
[1744389203827,0.1816849,82612.0,82611.0,0.5424776]
[1744389204017,0.12121542,82613.0,82612.0,0.121118]
[1744389204423,0.12121542,82613.0,82612.0,0.220718]
[1744389206534,0.121117,82613.0,82612.0,0.220718]
[1744389206926,0.005,82614.0,82613.0,0.1211165]
[1744389207125,0.126115,82614.0,82613.0,0.2218165]
[1744389207824,0.126155,82614.0,82613.0,0.2218165]
[1744389212330,0.175255,82614.0,82613.0,0.2218165]
[1744389213136,0.126155,82614.0,82613.0,0.2218165]
[1744389214232,0.00504,82614.0,82613.0,0.2218165]
[1744389214428,0.005,82614.0,82613.0,0.2218165]
[1744389214638,0.00504,82614.0,82613.0,0.2218165]
[1744389214934,0.005,82614.0,82613.0,0.2218165]
[1744389215132,0.32225677,82618.0,82617.0,0.1211106]
[1744389215632,0.44336597,82618.0,82617.0,0.2658106]
[1744389215823,0.32225677,82618.0,82617.0,0.5158106]
[1744389216037,0.25355325,82637.0,82636.0,0.1210828]
[1744389216332,0.37463455,82637.0,82636.0,0.8426828]
[1744389216835,0.37467455,82637.0,82636.0,0.8426828]
[1744389218336,0.37467455,82637.0,82636.0,0.85174259]
[1744389218727,0.37467455,82637.0,82636.0,0.7216]
[1744389218925,0.47107455,82637.0,82636.0,0.7216]
[1744389219123,0.2175213,82637.0,82636.0,0.7216]
[1744389219535,0.2680213,82637.0,82636.0,0.7216]
[1744389220731,0.14694,82637.0,82635.0,0.1210828]
[1744389220938,5.401e-05,82644.0,82638.0,0.0605399]